fUST/lending_fUST_20250219
["ID","MTS","AMOUNT","RATE_DAILY","PERIOD"]
[353629478,1739969450797,-204.66108231,0.000176,2]
[353629480,1739969450807,-314.0,0.000176,2]
[353629482,1739969450816,-314.0,0.000176,2]
[353629484,1739969450826,-314.0,0.000176,2]
[353629486,1739969450835,-314.0,0.000176,2]
[353629488,1739969450844,-314.0,0.000176,2]
[353629490,1739969450853,-349.0,0.000176,2]
[353629492,1739969450863,-314.0,0.000176,2]
[353629494,1739969450873,-349.0,0.000176,2]
[353629496,1739969450882,-349.0,0.000176,2]
[353629498,1739969450892,-349.0,0.000176,2]
[353629500,1739969450901,-349.0,0.000176,2]
[353629502,1739969450912,-217.11643488,0.000176,2]
[353629504,1739969450921,-314.0,0.000176,2]
[353629506,1739969450930,-314.0,0.000176,2]
[353629508,1739969450940,-314.0,0.000176,2]
[353629510,1739969450950,-314.0,0.000176,2]
[353629512,1739969450959,-314.0,0.000176,2]
[353629514,1739969450969,-359.25223506,0.000176,2]
[353629516,1739969450978,-1071.854575,0.000176,2]
[353629518,1739969450988,-1071.854575,0.000176,2]
[353629520,1739969450997,-1071.854575,0.000176,2]
[353629522,1739969451007,-1071.854575,0.000176,2]
[353629524,1739969451016,-2003710.02473468,0.000176,2]
[353629526,1739969451029,-355.34213273,0.000176,2]
[353630663,1739969993003,195.857811,9.041e-05,2]
[353630667,1739970550996,1315.23997619,0.00017814,120]
[353630668,1739970552167,-221.05926529,0.00011761,2]
[353630669,1739970552188,-382.87,0.0001188,2]
[353630670,1739970552209,-341.34371172,0.00012,2]
[353630671,1739970566136,-204.3728426,0.00011643,2]
[353630695,1739970632044,-16.68642269,0.00011643,2]
[353630696,1739970632053,-41.52628828,0.00012,2]
[353630697,1739970632063,-300.0,0.00012718,2]
[353630698,1739970632072,-1746.2359562,0.00012719,2]
[353630700,1739970632091,-1204.15000005,0.00012719,2]
[353630703,1739970632103,-21949.61404375,0.00012719,2]
[353630705,1739970632112,-500.0,0.00013,3]
[353630707,1739970632122,-8.60939298,0.00013,2]
[353630709,1739970632137,-491.39060702,0.00013,2]
[353630711,1739970632146,-500.0,0.00013,3]
[353630713,1739970632155,-168.68376446,0.00013591,2]
[353630716,1739970632165,-588.13398563,0.00013698,2]
[353630718,1739970632174,-396.66082694,0.00013698,2]
[353630720,1739970632183,-500.0,0.00013698,2]
[353630722,1739970632192,-504.26150352,0.00013698,2]
[353630724,1739970632202,-500.0,0.00013698,2]
[353630726,1739970632212,-500.0,0.00013698,2]
[353630728,1739970632222,-501.40519917,0.00013698,2]
[353630730,1739970632232,-505.41298056,0.00013698,2]
[353630732,1739970632241,-502.37723169,0.00013698,2]
[353630734,1739970632251,-501.64854121,0.00013698,2]
[353630736,1739970632260,-500.50728391,0.00013698,2]
[353630738,1739970632270,-500.70484194,0.00013698,2]
[353630740,1739970632280,-502.68975604,0.00013698,2]
[353630742,1739970632290,-502.60969088,0.00013698,2]
[353630744,1739970632300,-500.0,0.00013698,2]
[353630745,1739970632310,-500.0,0.00013698,2]
[353630746,1739970632320,-464.70183236,0.00013698,2]
[353630747,1739970632330,-502.39339429,0.00013698,2]
[353630748,1739970632339,-500.0,0.00013698,2]
[353630749,1739970632349,-500.79688619,0.00013698,2]
[353630750,1739970632358,-500.79065094,0.00013698,2]
[353630751,1739970632369,-500.0,0.00013698,2]
[353630752,1739970632378,-500.0,0.00013698,2]
[353630753,1739970632388,-500.0,0.00013698,2]
[353630754,1739970632397,-503.75022547,0.00013698,2]
[353630755,1739970632407,-500.0,0.00013698,2]
[353630756,1739970632416,-500.0,0.00013698,2]
[353630757,1739970632426,-500.0,0.00013698,2]
[353630758,1739970632601,-500.0,0.00013698,2]
[353630759,1739970632611,-500.0,0.00013698,2]
[353630760,1739970632621,-500.0,0.00013698,2]
[353630761,1739970632630,-641.97937385,0.00013698,2]
[353630762,1739970632639,-500.0,0.00013698,2]
[353630763,1739970632649,-323.93307485,0.00013698,2]
[353630764,1739970632659,-500.0,0.00013698,2]
[353630765,1739970632668,-500.0,0.00013698,2]
[353630766,1739970632677,-510.90560016,0.00013698,2]
[353630767,1739970632686,-500.0,0.00013698,2]
[353630768,1739970632695,-500.38335343,0.00013698,2]
[353630769,1739970632704,-501.30725787,0.00013698,2]
[353630770,1739970632713,-500.20020121,0.00013698,2]
[353630771,1739970632723,-502.55415776,0.00013698,2]
[353630772,1739970632732,-500.0,0.00013698,2]
[353630773,1739970632741,-502.69712252,0.00013698,2]
[353630774,1739970632750,-500.0,0.00013698,2]
[353630775,1739970632759,-501.04451241,0.00013698,2]
[353630776,1739970632769,-500.0,0.00013698,2]
[353630777,1739970632778,-500.71237548,0.00013698,2]
[353630778,1739970632789,-500.0,0.00013698,2]
[353630779,1739970632798,-501.42058717,0.00013698,2]
[353630780,1739970632807,-611.80164361,0.00013698,2]
[353630781,1739970632816,-501.91527297,0.00013698,2]
[353630782,1739970632825,-500.0,0.00013698,2]
[353630783,1739970632834,-500.0,0.00013698,2]
[353630784,1739970632844,-615.22,0.00013698,2]
[353630785,1739970632853,-500.0,0.00013698,2]
[353630786,1739970632863,-500.0,0.00013698,2]
[353630787,1739970632872,-500.0,0.00013698,2]
[353630788,1739970632881,-500.0,0.00013698,2]
[353630789,1739970632890,-500.0,0.00013698,2]
[353630790,1739970632899,-501.39987005,0.00013698,2]
[353630791,1739970632908,-500.0,0.00013698,2]
[353630792,1739970632918,-500.0,0.00013698,2]
[353630793,1739970632927,-500.0,0.00013698,2]
[353630794,1739970632936,-500.0,0.00013698,2]
[353630795,1739970632945,-500.0,0.00013698,2]
[353630796,1739970632954,-500.0,0.00013698,2]
[353630797,1739970632963,-500.98460817,0.00013698,2]
[353630798,1739970632972,-538.87,0.00013698,2]
[353630799,1739970632982,-500.0,0.00013698,2]
[353630800,1739970632991,-500.0,0.00013698,2]
[353630801,1739970633000,-500.0,0.00013698,2]
[353630802,1739970633009,-500.0,0.00013698,2]
[353630803,1739970633019,-500.0,0.00013698,2]
[353630804,1739970633029,-514.6883058,0.00013698,2]
[353630805,1739970633040,-500.0,0.00013698,2]
[353630806,1739970633050,-500.0,0.00013698,2]
[353630807,1739970633059,-500.0,0.00013698,2]
[353630808,1739970633069,-500.0,0.00013698,2]
[353630809,1739970633079,-500.0,0.00013698,2]
[353630810,1739970633089,-500.0,0.00013698,2]
[353630811,1739970633098,-504.43446659,0.00013698,2]
[353630812,1739970633108,-2929.31,0.00013698,2]
[353630813,1739970633118,-500.97538217,0.00013698,2]
[353630814,1739970633128,-172.85484743,0.00013698,2]
[353630815,1739970633138,-165.51770334,0.00013698,2]
[353630816,1739970633147,-508.02085293,0.00013698,2]
[353630817,1739970633157,-500.40770375,0.00013698,2]
[353630818,1739970633167,-500.0,0.00013698,2]
[353630819,1739970633177,-500.0,0.00013698,2]
[353630820,1739970633186,-500.0,0.00013698,2]
[353630821,1739970633196,-500.0,0.00013698,2]
[353630822,1739970633205,-500.0,0.00013698,2]
[353630823,1739970633215,-500.0,0.00013698,2]
[353630824,1739970633224,-500.0,0.00013698,2]
[353630825,1739970633234,-500.0,0.00013698,2]
[353630826,1739970633243,-500.0,0.00013698,2]
[353630827,1739970633253,-618.83,0.00013698,2]
[353630828,1739970633263,-500.0,0.00013698,2]
[353630829,1739970633273,-500.0,0.00013698,2]
[353630830,1739970633283,-504.77749621,0.00013698,2]
[353630831,1739970633293,-500.0,0.00013698,2]
[353630832,1739970633303,-500.0,0.00013698,2]
[353630833,1739970633313,-500.44166344,0.00013698,2]
[353630834,1739970633323,-547.63,0.00013698,2]
[353630835,1739970633332,-500.0,0.00013698,2]
[353630836,1739970633342,-500.0,0.00013698,2]
[353630837,1739970633351,-500.0,0.00013698,2]
[353630838,1739970633361,-504.44749838,0.00013698,2]
[353630839,1739970633371,-500.0,0.00013698,2]
[353630840,1739970633380,-170.80519076,0.00013698,2]
[353630841,1739970633389,-501.98577372,0.00013698,2]
[353630842,1739970633399,-500.0,0.00013698,2]
[353630843,1739970633408,-500.0,0.00013698,2]
[353630844,1739970633417,-500.0,0.00013698,2]
[353630845,1739970633427,-500.0,0.00013698,2]
[353630846,1739970633436,-500.43564029,0.00013698,2]
[353630847,1739970633446,-500.69828212,0.00013698,2]
[353630848,1739970633455,-500.0,0.00013698,2]
[353630849,1739970633464,-500.0,0.00013698,2]
[353630850,1739970633474,-358.11351981,0.00013698,2]
[353630851,1739970633483,-500.5733443,0.00013698,2]
[353630852,1739970633493,-500.0,0.00013698,2]
[353630853,1739970633502,-500.0,0.00013698,2]
[353630854,1739970633512,-9608.93,0.00013698,2]
[353630855,1739970633524,-2034.66,0.00013698,2]
[353630856,1739970633534,-537.40189444,0.00013698,2]
[353630857,1739970633543,-802.62,0.00013698,2]
[353630858,1739970633552,-500.0,0.00013698,2]
[353630859,1739970633562,-500.0,0.00013698,2]
[353630860,1739970633572,-500.0,0.00013698,2]
[353630861,1739970633582,-511.47600272,0.00013698,2]
[353630862,1739970633592,-559.38529798,0.00013698,2]
[353630863,1739970633602,-500.0,0.00013698,2]
[353630864,1739970633611,-500.0,0.00013698,2]
[353630865,1739970633620,-442.13,0.00013698,2]
[353630866,1739970633630,-500.0,0.00013698,2]
[353630867,1739970633639,-500.0,0.00013698,2]
[353630868,1739970633648,-500.0,0.00013698,2]
[353630869,1739970633658,-500.0,0.00013698,2]
[353630870,1739970633667,-500.0,0.00013698,2]
[353630871,1739970633676,-2681.44,0.00013698,2]
[353630872,1739970633685,-500.0,0.00013698,2]
[353630873,1739970633695,-629.0,0.00013698,2]
[353630874,1739970633704,-500.0,0.00013698,2]
[353630875,1739970633714,-500.0,0.00013698,2]
[353630876,1739970633723,-500.0,0.00013698,2]
[353630877,1739970633732,-500.0,0.00013698,2]
[353630878,1739970633742,-575.4,0.00013698,2]
[353630879,1739970633755,-500.0,0.00013698,2]
[353630880,1739970633767,-626.3008049,0.00013698,2]
[353630881,1739970633776,-502.42176256,0.00013698,2]
[353630882,1739970633786,-500.0,0.00013698,2]
[353630883,1739970633796,-1250.42,0.00013698,2]
[353630884,1739970633808,-500.0,0.00013698,2]
[353630885,1739970633818,-648.63048975,0.00013698,2]
[353630886,1739970633827,-568.6316286,0.00013698,2]
[353630887,1739970633836,-260.030967,0.00013699,2]
[353630888,1739970633846,-339.674787,0.00013699,2]
[353630889,1739970633855,-152.0,0.00013707,2]
[353630890,1739970633865,-500.0,0.00013779,2]
[353630891,1739970633874,-500.0,0.00013779,2]
[353630892,1739970633884,-500.0,0.00013779,2]
[353630893,1739970633893,-500.0,0.0001378,2]
[353630894,1739970633903,-500.0,0.0001378,2]
[353630895,1739970633912,-501.07615933,0.0001378,2]
[353630896,1739970633922,-500.0,0.0001378,2]
[353630897,1739970633931,-500.0,0.0001378,2]
[353630898,1739970633943,-500.0,0.0001378,2]
[353630899,1739970633953,-500.0,0.0001378,2]
[353630900,1739970633962,-500.0,0.0001378,2]
[353630901,1739970633972,-500.0,0.0001378,2]
[353630902,1739970633982,-500.0,0.0001378,2]
[353630903,1739970633992,-500.0,0.0001378,2]
[353630904,1739970634002,-500.0,0.0001378,2]
[353630905,1739970634011,-502.46238684,0.0001378,2]
[353630906,1739970634021,-615.22,0.0001378,2]
[353630907,1739970634031,-500.0,0.0001378,2]
[353630908,1739970634041,-500.0,0.0001378,2]
[353630909,1739970634050,-500.0,0.0001378,2]
[353630910,1739970634060,-500.0,0.0001378,2]
[353630911,1739970634070,-503.27838195,0.0001378,2]
[353630912,1739970634079,-500.0,0.0001378,2]
[353630913,1739970634089,-500.0,0.0001378,2]
[353630914,1739970634099,-500.0,0.0001378,2]
[353630915,1739970634109,-500.0,0.0001378,2]
[353630916,1739970634119,-500.0,0.0001378,2]
[353630917,1739970634128,-538.87,0.0001378,2]
[353630918,1739970634138,-500.0,0.0001378,2]
[353630919,1739970634148,-236.03443582,0.0001378,2]
[353630935,1739970637725,-207.7083,0.0001369,2]
[353630937,1739970637735,-500.0,0.0001369,2]
[353630938,1739970637744,-500.0,0.0001369,2]
[353630939,1739970637754,-500.0,0.0001369,2]
[353630940,1739970637763,-500.0,0.0001369,2]
[353630941,1739970637773,-500.0,0.0001369,2]
[353630942,1739970637782,-500.0,0.0001369,2]
[353630943,1739970637793,-500.0,0.0001369,2]
[353630944,1739970637802,-500.0,0.0001369,2]
[353630945,1739970637811,-500.0,0.0001369,2]
[353630946,1739970637821,-500.0,0.0001369,2]
[353630947,1739970637830,-500.0,0.0001369,2]
[353630948,1739970637840,-500.0,0.0001369,2]
[353630949,1739970637850,-500.0,0.0001369,2]
[353630950,1739970637860,-500.0,0.0001369,2]
[353630951,1739970637870,-500.0,0.0001369,2]
[353630953,1739970637879,-500.0,0.0001369,2]
[353630954,1739970637889,-572.86320861,0.0001369,2]
[353630955,1739970637898,-500.0,0.0001369,2]
[353630956,1739970637907,-500.0,0.0001369,2]
[353630957,1739970637917,-500.0,0.0001369,2]
[353630958,1739970637926,-500.0,0.0001369,2]
[353630959,1739970637935,-227.9649764,0.0001369,2]
[353630960,1739970637945,-500.0,0.0001369,2]
[353630961,1739970637954,-500.0,0.0001369,2]
[353630962,1739970637964,-500.0,0.0001369,2]
[353630963,1739970637974,-500.0,0.0001369,2]
[353630964,1739970637983,-500.0,0.0001369,2]
[353630965,1739970637993,-500.0,0.0001369,2]
[353630966,1739970638003,-500.0,0.0001369,2]
[353630967,1739970638012,-265.95854279,0.0001369,2]
[353630968,1739970638021,-500.0,0.0001369,2]
[353630969,1739970638031,-500.0,0.0001369,2]
[353630970,1739970638041,-500.0,0.0001369,2]
[353630971,1739970638051,-500.0,0.0001369,2]
[353630972,1739970638060,-333.8139353,0.00013699,2]
[353630973,1739970638070,-359.61131221,0.00013779,2]
[353630974,1739970638079,-180.57739819,0.00013779,2]
[353630975,1739970638089,-263.96556418,0.0001378,2]
[353630976,1739970638098,-500.0,0.0001378,2]
[353630977,1739970638107,-500.0,0.0001378,2]
[353630978,1739970638118,-503.12917221,0.0001378,2]
[353630979,1739970638128,-500.0,0.0001378,2]
[353630980,1739970638137,-500.0,0.0001378,2]
[353630981,1739970638147,-500.0,0.0001378,2]
[353630982,1739970638156,-500.0,0.0001378,2]
[353630983,1739970638165,-2929.31,0.0001378,2]
[353630984,1739970638174,-607.5,0.0001378,2]
[353630985,1739970638184,-500.0,0.0001378,2]
[353630986,1739970638193,-618.83,0.0001378,2]
[353630987,1739970638202,-506.03716511,0.0001378,2]
[353630988,1739970638211,-547.63,0.0001378,2]
[353630989,1739970638220,-200.8950748,0.0001378,2]
[353630990,1739970638230,-500.0,0.0001378,2]
[353630991,1739970638239,-500.0,0.0001378,2]
[353630992,1739970638249,-500.0,0.0001378,2]
[353630993,1739970638258,-9608.93,0.0001378,2]
[353630994,1739970638267,-2034.66,0.0001378,2]
[353630995,1739970638277,-802.62,0.0001378,2]
[353630996,1739970638287,-500.0,0.0001378,2]
[353630997,1739970638296,-500.0,0.0001378,2]
[353630998,1739970638306,-500.0,0.0001378,2]
[353630999,1739970638315,-500.0,0.0001378,2]
[353631000,1739970638325,-500.0,0.0001378,2]
[353631001,1739970638335,-500.0,0.0001378,2]
[353631002,1739970638344,-2681.44,0.0001378,2]
[353631003,1739970638354,-500.0,0.0001378,2]
[353631004,1739970638364,-629.0,0.0001378,2]
[353631005,1739970638478,-500.0,0.0001378,2]
[353631006,1739970638488,-500.0,0.0001378,2]
[353631007,1739970638498,-500.0,0.0001378,2]
[353631008,1739970638508,-575.4,0.0001378,2]
[353631009,1739970638519,-366.85607927,0.0001378,2]
[353631010,1739970638532,-500.0,0.0001378,2]
[353631011,1739970638543,-1250.42,0.0001378,2]
[353631012,1739970638552,-151.0,0.000138,2]
[353631013,1739970638562,-151.0,0.000138,2]
[353631014,1739970638571,-500.0,0.00013862,2]
[353631015,1739970638581,-501.98469483,0.00013863,2]
[353631016,1739970638591,-500.0,0.00013863,2]
[353631017,1739970638602,-500.0,0.00013863,2]
[353631018,1739970638612,-500.0,0.00013863,2]
[353631019,1739970638621,-500.0,0.00013863,2]
[353631020,1739970638631,-500.0,0.00013863,2]
[353631021,1739970638640,-500.0,0.00013863,2]
[353631022,1739970638649,-500.0,0.00013863,2]
[353631023,1739970638659,-615.22,0.00013863,2]
[353631024,1739970638668,-500.0,0.00013863,2]
[353631025,1739970638678,-337.8226994,0.00013863,2]
[353631026,1739970638687,-593.28968224,0.00013863,2]
[353631027,1739970638696,-500.0,0.00013863,2]
[353631028,1739970638706,-500.0,0.00013863,2]
[353631029,1739970638715,-500.0,0.00013863,2]
[353631030,1739970638725,-500.0,0.00013863,2]
[353631031,1739970638735,-500.0,0.00013863,2]
[353631032,1739970638744,-538.87,0.00013863,2]
[353631033,1739970638754,-500.0,0.00013863,2]
[353631034,1739970638764,-500.0,0.00013863,2]
[353631035,1739970638773,-500.0,0.00013863,2]
[353631036,1739970638783,-522.67,0.00013863,2]
[353631037,1739970638794,-500.0,0.00013863,2]
[353631038,1739970638803,-500.0,0.00013863,2]
[353631039,1739970638813,-500.0,0.00013863,2]
[353631040,1739970638822,-500.0,0.00013863,2]
[353631041,1739970638832,-2929.31,0.00013863,2]
[353631042,1739970638842,-502.80699252,0.00013863,2]
[353631043,1739970638851,-618.83,0.00013863,2]
[353631044,1739970638861,-547.63,0.00013863,2]
[353631045,1739970638871,-503.69153122,0.00013863,2]
[353631046,1739970638881,-500.0,0.00013863,2]
[353631047,1739970638890,-500.0,0.00013863,2]
[353631048,1739970638900,-4339.58642668,0.00013863,2]
[353631049,1739970638997,-611.556,0.00013863,2]
[353631050,1739970639010,-4657.78757332,0.00013863,2]
[353631051,1739970639020,-2034.66,0.00013863,2]
[353631052,1739970639028,-802.62,0.00013863,2]
[353631053,1739970639040,-65.43052396,0.00013863,2]
[353631054,1739970639052,-434.56947604,0.00013863,2]
[353631055,1739970639062,-500.0,0.00013863,2]
[353631056,1739970639071,-500.0,0.00013863,2]
[353631057,1739970639081,-500.0,0.00013863,2]
[353631058,1739970639090,-610.25079483,0.00013863,2]
[353631059,1739970639100,-574.5,0.00013863,2]
[353631060,1739970639109,-2681.44,0.00013863,2]
[353631061,1739970639119,-629.0,0.00013863,2]
[353631062,1739970639128,-500.0,0.00013863,2]
[353631063,1739970639138,-500.0,0.00013863,2]
[353631064,1739970639148,-575.4,0.00013863,2]
[353631065,1739970639157,-1250.42,0.00013863,2]
[353631066,1739970639167,-151.0,0.000139,2]
[353631067,1739970639176,-500.0,0.00013944,2]
[353631068,1739970639186,-500.0,0.00013945,2]
[353631069,1739970639196,-500.0,0.00013945,2]
[353631070,1739970639205,-500.0,0.00013945,2]
[353631071,1739970639214,-500.0,0.00013945,2]
[353631072,1739970639224,-447.41,0.00013945,2]
[353631073,1739970639234,-500.0,0.00013945,2]
[353631075,1739970639243,-615.22,0.00013945,2]
[353631076,1739970639253,-500.0,0.00013945,2]
[353631077,1739970639262,-500.0,0.00013945,2]
[353631078,1739970639271,-500.0,0.00013945,2]
[353631079,1739970639280,-500.0,0.00013945,2]
[353631080,1739970639291,-500.0,0.00013945,2]
[353631081,1739970639300,-502.37014656,0.00013945,2]
[353631082,1739970639309,-538.87,0.00013945,2]
[353631083,1739970639319,-500.0,0.00013945,2]
[353631084,1739970639328,-388.7,0.00013945,2]
[353631085,1739970639337,-500.0,0.00013945,2]
[353631086,1739970639346,-500.0,0.00013945,2]
[353631088,1739970639356,-500.0,0.00013945,2]
[353631090,1739970639366,-500.0,0.00013945,2]
[353631091,1739970639375,-388.84276006,0.00013945,2]
[353631092,1739970639384,-2929.31,0.00013945,2]
[353631093,1739970639394,-618.83,0.00013945,2]
[353631094,1739970639403,-547.63,0.00013945,2]
[353631096,1739970639413,-500.0,0.00013945,2]
[353631097,1739970639422,-500.0,0.00013945,2]
[353631100,1739970639433,-9608.93,0.00013945,2]
[353631101,1739970639442,-2034.66,0.00013945,2]
[353631103,1739970639451,-802.62,0.00013945,2]
[353631105,1739970639460,-500.0,0.00013945,2]
[353631106,1739970639470,-500.0,0.00013945,2]
[353631107,1739970639479,-500.0,0.00013945,2]
[353631108,1739970639488,-500.0,0.00013945,2]
[353631109,1739970639497,-2681.44,0.00013945,2]
[353631110,1739970639507,-629.0,0.00013945,2]
[353631111,1739970639516,-500.0,0.00013945,2]
[353631112,1739970639530,-500.0,0.00013945,2]
[353631113,1739970639539,-575.4,0.00013945,2]
[353631114,1739970639549,-1250.42,0.00013945,2]
[353631115,1739970639558,-420.0,0.00013951,2]
[353631116,1739970639568,-151.0,0.00014,2]
[353631118,1739970639578,-151.0,0.00014,2]
[353631120,1739970639587,-500.0,0.00014026,2]
[353631121,1739970639596,-500.0,0.00014027,2]
[353631122,1739970639606,-500.0,0.00014027,2]
[353631123,1739970639616,-500.0,0.00014027,2]
[353631124,1739970639626,-500.0,0.00014027,2]
[353631125,1739970639636,-500.0,0.00014027,2]
[353631126,1739970639646,-615.22,0.00014027,2]
[353631127,1739970639655,-152.45,0.00014027,2]
[353631128,1739970639664,-500.0,0.00014027,2]
[353631129,1739970639675,-500.0,0.00014027,2]
[353631130,1739970639685,-538.87,0.00014027,2]
[353631131,1739970639695,-500.0,0.00014027,2]
[353631132,1739970639705,-502.64067905,0.00014027,2]
[353631133,1739970639714,-500.0,0.00014027,2]
[353631134,1739970639723,-500.0,0.00014027,2]
[353631135,1739970639733,-500.0,0.00014027,2]
[353631136,1739970639743,-2929.31,0.00014027,2]
[353631137,1739970639752,-618.83,0.00014027,2]
[353631138,1739970639761,-547.63,0.00014027,2]
[353631139,1739970639771,-500.0,0.00014027,2]
[353631140,1739970639780,-9608.93,0.00014027,2]
[353631141,1739970639790,-2034.66,0.00014027,2]
[353631142,1739970639799,-802.62,0.00014027,2]
[353631143,1739970639809,-500.0,0.00014027,2]
[353631144,1739970639818,-500.0,0.00014027,2]
[353631145,1739970639827,-500.0,0.00014027,2]
[353631146,1739970639837,-500.0,0.00014027,2]
[353631147,1739970639847,-2681.44,0.00014027,2]
[353631148,1739970639856,-629.0,0.00014027,2]
[353631149,1739970639865,-500.0,0.00014027,2]
[353631150,1739970639875,-500.0,0.00014027,2]
[353631151,1739970639884,-575.4,0.00014027,2]
[353631152,1739970639894,-1250.42,0.00014027,2]
[353631154,1739970639903,-500.0,0.00014075,2]
[353631155,1739970639912,-151.0,0.000141,2]
[353631156,1739970639921,-500.0,0.00014109,2]
[353631157,1739970639931,-500.0,0.00014109,2]
[353631158,1739970639940,-500.0,0.00014109,2]
[353631159,1739970639949,-500.0,0.00014109,2]
[353631160,1739970639959,-500.0,0.00014109,2]
[353631161,1739970639969,-615.22,0.00014109,2]
[353631162,1739970639978,-500.0,0.00014109,2]
[353631163,1739970639987,-500.0,0.00014109,2]
[353631164,1739970639996,-538.87,0.00014109,2]
[353631165,1739970640005,-500.0,0.00014109,2]
[353631167,1739970640015,-500.0,0.00014109,2]
[353631168,1739970640024,-500.0,0.00014109,2]
[353631169,1739970640033,-500.0,0.00014109,2]
[353631170,1739970640043,-2929.31,0.00014109,2]
[353631171,1739970640053,-618.83,0.00014109,2]
[353631172,1739970640063,-547.63,0.00014109,2]
[353631173,1739970640072,-500.0,0.00014109,2]
[353631174,1739970640082,-9608.93,0.00014109,2]
[353631175,1739970640091,-2034.66,0.00014109,2]
[353631176,1739970640100,-802.62,0.00014109,2]
[353631177,1739970640110,-500.0,0.00014109,2]
[353631178,1739970640119,-500.0,0.00014109,2]
[353631179,1739970640129,-500.0,0.00014109,2]
[353631180,1739970640138,-2681.44,0.00014109,2]
[353631181,1739970640148,-629.0,0.00014109,2]
[353631182,1739970640157,-500.0,0.00014109,2]
[353631183,1739970640166,-500.0,0.00014109,2]
[353631184,1739970640175,-575.4,0.00014109,2]
[353631185,1739970640185,-1250.42,0.00014109,2]
[353631186,1739970640194,-193.0,0.00014111,2]
[353631187,1739970640203,-600.0,0.00014164,2]
[353631188,1739970640213,-500.0,0.0001419,2]
[353631189,1739970640222,-500.0,0.00014191,2]
[353631190,1739970640231,-500.0,0.00014191,2]
[353631191,1739970640240,-500.0,0.00014191,2]
[353631192,1739970640249,-500.0,0.00014191,2]
[353631193,1739970640259,-500.0,0.00014191,2]
[353631194,1739970640268,-615.22,0.00014191,2]
[353631195,1739970640278,-224.89,0.00014191,2]
[353631196,1739970640287,-538.87,0.00014191,2]
[353631197,1739970640296,-500.0,0.00014191,2]
[353631198,1739970640305,-505.33745205,0.00014191,2]
[353631199,1739970640314,-500.0,0.00014191,2]
[353631200,1739970640323,-500.0,0.00014191,2]
[353631201,1739970640332,-2929.31,0.00014191,2]
[353631202,1739970640342,-618.83,0.00014191,2]
[353631203,1739970640351,-547.63,0.00014191,2]
[353631204,1739970640360,-500.0,0.00014191,2]
[353631205,1739970640370,-9608.93,0.00014191,2]
[353631206,1739970640379,-2034.66,0.00014191,2]
[353631207,1739970640388,-802.62,0.00014191,2]
[353631208,1739970640397,-500.0,0.00014191,2]
[353631209,1739970640406,-500.0,0.00014191,2]
[353631210,1739970640416,-2681.44,0.00014191,2]
[353631211,1739970640425,-629.0,0.00014191,2]
[353631212,1739970640434,-500.0,0.00014191,2]
[353631213,1739970640443,-500.0,0.00014191,2]
[353631214,1739970640452,-575.4,0.00014191,2]
[353631215,1739970640462,-1250.42,0.00014191,2]
[353631216,1739970640471,-500.0,0.00014236,2]